bitfinex-derivatives/quotes_BTCF0:USTF0_20251118
["timestamp","ask_amount","ask_price","bid_price","bid_amount"]
[1763475623981,0.002,91409.0,91408.0,0.41765]
[1763475625283,0.00016413,91425.0,91424.0,0.05685]
[1763475625588,0.04419413,91425.0,91424.0,0.05685]
[1763475625785,0.00016413,91425.0,91424.0,0.05685]
[1763475626684,0.00116413,91425.0,91424.0,0.05685]
[1763475626883,0.04519413,91425.0,91424.0,0.05685]
[1763475627285,0.04419413,91425.0,91424.0,0.05685]
[1763475630792,0.04419413,91425.0,91424.0,0.04388]
[1763475632282,0.04557,91417.0,91416.0,0.41796]
[1763475633590,0.04557,91417.0,91416.0,0.3608]
[1763475633786,0.04557,91417.0,91416.0,0.40499]
[1763475634890,0.04557,91417.0,91416.0,0.41801]
[1763475635688,0.04557,91417.0,91416.0,0.38253]
[1763475635888,0.04557,91409.0,91408.0,0.04419]
[1763475639894,0.00219803,91410.0,91409.0,0.04419]
[1763475640592,0.03928937,91419.0,91417.0,0.04419]
[1763475640796,0.41979,91424.0,91418.0,0.04419]
[1763475640797,0.0414874,91420.0,91418.0,0.04419]
[1763475640984,0.0414874,91420.0,91419.0,0.04419]
[1763475641184,0.00016413,91425.0,91424.0,0.04419]
[1763475641490,0.03928937,91434.0,91433.0,0.04419]
[1763475641688,0.03928937,91436.0,91435.0,0.04419]
[1763475641883,0.03928937,91436.0,91432.0,0.01302]
[1763475641884,0.03928937,91437.0,91436.0,0.04419]
[1763475642193,0.00219803,91440.0,91439.0,0.04419]
[1763475643092,0.00219803,91440.0,91439.0,0.40499]
[1763475644187,0.03928937,91447.0,91439.0,0.40499]
[1763475644386,0.03945301,91449.0,91445.0,0.04419]
[1763475644585,0.04584339,91446.0,91445.0,0.04419]
[1763475645187,0.04557,91441.0,91440.0,0.02173]
[1763475645795,0.08865744,91445.0,91444.0,0.04419]
[1763475645997,0.04584339,91446.0,91445.0,0.04419]
[1763475648799,0.00027339,91446.0,91445.0,0.04419]
[1763475651396,0.03928937,91459.0,91448.0,0.05721]
[1763475651596,0.03928937,91459.0,91448.0,0.68225]
[1763475652204,0.03928937,91460.0,91448.0,0.68225]
[1763475652404,0.03928937,91459.0,91448.0,0.68225]
[1763475653199,0.00219803,91450.0,91448.0,0.68225]
[1763475653995,0.00219803,91450.0,91448.0,0.68221]
[1763475654491,0.04573364,91449.0,91448.0,0.68221]
[1763475655011,0.00016364,91449.0,91448.0,0.68221]
[1763475656004,0.02248364,91449.0,91448.0,0.68221]
[1763475656408,0.00016364,91449.0,91448.0,0.68221]
[1763475658097,0.00016364,91449.0,91448.0,0.41801]
[1763475658306,0.00016364,91449.0,91448.0,0.68221]
[1763475658805,0.04525364,91449.0,91448.0,0.68221]
[1763475659204,0.00016364,91449.0,91448.0,0.68221]
[1763475664403,0.02259364,91449.0,91448.0,0.68221]
[1763475664604,0.04536364,91449.0,91448.0,0.68221]
[1763475665115,0.00016364,91449.0,91448.0,0.68221]
[1763475666613,0.0452,91441.0,91440.0,0.4059]
[1763475666814,0.0452,91441.0,91440.0,0.67006]
[1763475667710,0.08465301,91449.0,91448.0,0.05775]
[1763475668012,0.06188301,91449.0,91448.0,0.05775]
[1763475668317,0.04536364,91449.0,91448.0,0.05775]
[1763475668514,0.08466304,91449.0,91448.0,0.05775]
[1763475669011,0.08466304,91449.0,91448.0,0.0451]
[1763475669012,0.04536364,91449.0,91448.0,0.0451]
[1763475673109,0.04636364,91449.0,91448.0,0.0451]
[1763475674916,0.04536364,91449.0,91448.0,0.0451]
[1763475675810,0.0452,91442.0,91441.0,0.0451]
[1763475676118,0.00597,91427.0,91419.0,0.02938729]
[1763475676309,0.0452,91407.0,91406.0,3.51e-06]
[1763475676511,0.30936,91407.0,91406.0,3.51e-06]
[1763475677006,0.0452,91407.0,91406.0,0.04510351]
[1763475678229,0.00219803,91410.0,91409.0,0.0451]
[1763475679119,0.02462803,91410.0,91409.0,0.0451]
[1763475679621,0.04739803,91410.0,91409.0,0.0451]
[1763475680522,0.09074052,91410.0,91406.0,3.51e-06]
[1763475680718,0.0392503,91408.0,91406.0,3.51e-06]
[1763475681023,0.00693,91408.0,91406.0,3.51e-06]
[1763475682324,0.03918175,91407.0,91406.0,3.51e-06]
[1763475682521,0.03918175,91407.0,91406.0,0.04533351]
[1763475682723,0.08285175,91407.0,91406.0,0.04533351]
[1763475682920,0.04367,91407.0,91406.0,0.04533351]
[1763475683110,0.08285175,91407.0,91406.0,0.04533351]
[1763475683314,0.04367,91407.0,91406.0,0.04533351]
[1763475684527,0.001,91408.0,91407.0,0.04533]
[1763475685323,0.09130303,91410.0,91409.0,0.04533]
[1763475685525,0.11236303,91410.0,91409.0,0.04533]
[1763475686026,0.13497303,91410.0,91409.0,0.04533]
[1763475687119,0.13597303,91410.0,91409.0,0.04533]
[1763475688514,0.09230303,91410.0,91406.0,3.51e-06]
[1763475689121,0.09130303,91410.0,91406.0,3.51e-06]
[1763475689423,0.09230303,91410.0,91406.0,3.51e-06]
[1763475689625,0.13148478,91410.0,91406.0,3.51e-06]
[1763475689828,0.13048478,91410.0,91406.0,3.51e-06]
[1763475690129,0.03918175,91409.0,91397.0,0.04501404]
[1763475690317,0.04362,91398.0,91397.0,0.04501404]
[1763475691626,0.04362,91398.0,91397.0,0.02230404]
[1763475691819,0.04362,91398.0,91397.0,0.00016404]
[1763475692018,0.04362,91398.0,91397.0,0.02230404]
[1763475692220,0.04362,91398.0,91397.0,0.04501404]
[1763475692717,0.3608,91399.0,91398.0,0.04485]
[1763475692913,0.3608,91399.0,91397.0,0.00016404]
[1763475692914,0.00219803,91400.0,91399.0,0.04485]
[1763475694226,0.00319803,91400.0,91399.0,0.04485]
[1763475695523,0.00319803,91400.0,91397.0,0.00016404]
[1763475695524,0.26428,91414.0,91411.0,0.04485]
[1763475696317,0.30346175,91414.0,91411.0,0.04485]
[1763475697226,0.38335,91412.0,91411.0,0.04485]
[1763475697617,0.3618,91412.0,91411.0,0.04485]
[1763475698627,0.40542,91412.0,91411.0,0.04485]
[1763475699829,0.40442,91412.0,91411.0,0.04485]
[1763475701326,0.46329778,91412.0,91411.0,0.04485]
[1763475701628,0.40442,91412.0,91411.0,0.02214]
[1763475701828,0.04362,91401.0,91400.0,0.05823]
[1763475703221,0.04362,91398.0,91397.0,0.00016404]
[1763475703420,0.10249778,91398.0,91397.0,0.02230404]
[1763475704424,0.04362,91398.0,91397.0,0.02230404]
[1763475704629,0.04362,91398.0,91397.0,0.04501404]
[1763475705425,0.04362,91398.0,91397.0,0.00016404]
[1763475705932,0.04362,91398.0,91397.0,0.02230404]
[1763475706731,0.04362,91398.0,91397.0,0.04501404]
[1763475707428,0.0787908,91399.0,91397.0,0.04501404]
[1763475707631,0.0787908,91399.0,91398.0,0.04485]
[1763475708135,0.34526883,91400.0,91399.0,0.04485]
[1763475708339,0.36681883,91400.0,91399.0,0.04485]
[1763475708633,0.38888883,91400.0,91399.0,0.04485]
[1763475709030,0.08098883,91400.0,91399.0,0.04485]
[1763475709224,0.00219803,91400.0,91399.0,0.04485]
[1763475709428,0.02374803,91400.0,91399.0,0.04485]
[1763475709627,0.04581803,91400.0,91399.0,0.04485]
[1763475711031,0.04681803,91400.0,91399.0,0.04485]
[1763475714332,0.04681803,91400.0,91399.0,0.05823]
[1763475715630,0.10592408,91400.0,91399.0,0.05823]
[1763475715831,0.04581803,91400.0,91399.0,0.05823]
[1763475716035,0.10492408,91400.0,91399.0,0.05823]
[1763475717644,0.10492408,91400.0,91399.0,0.04485]
[1763475717834,0.04396,91398.0,91397.0,0.00016404]
[1763475719038,0.00597,91399.0,91378.0,0.05785]
[1763475719039,0.04396,91379.0,91378.0,0.05785]
[1763475719435,0.04396,91379.0,91378.0,0.04447]
[1763475719740,0.04396,91379.0,91378.0,0.05743]
[1763475721829,0.04396,91379.0,91378.0,0.04447]
[1763475722138,0.04396,91379.0,91378.0,0.05743]
[1763475723834,0.05911105,91389.0,91386.0,0.04447]
[1763475724048,0.00073267,91390.0,91387.0,0.04447]
[1763475724230,0.03936017,91389.0,91387.0,0.04447]
[1763475724436,0.04009284,91390.0,91387.0,0.04447]
[1763475725041,0.04412413,91388.0,91387.0,0.02203]
[1763475725341,0.04396,91379.0,91378.0,0.05743]
[1763475725647,0.10300333,91379.0,91378.0,0.05743]
[1763475725941,0.04396,91377.0,91376.0,0.38283]
[1763475726138,0.04396,91377.0,91376.0,0.04447]
[1763475728332,0.04396,91377.0,91368.0,0.3608]
[1763475728333,0.00073267,91380.0,91379.0,0.04447]
[1763475728745,0.05901162,91386.0,91381.0,0.04447]
[1763475729041,0.03933924,91382.0,91381.0,0.04447]
[1763475729244,0.06304226,91382.0,91381.0,0.04447]
[1763475729446,0.03933924,91382.0,91381.0,0.04447]
[1763475729745,0.06304226,91382.0,91381.0,0.04447]
[1763475729935,0.05901162,91387.0,91380.0,0.00219803]
[1763475729936,0.03933924,91385.0,91384.0,0.05743]
[1763475730134,0.03933924,91386.0,91385.0,0.04447]
[1763475730329,0.00016413,91388.0,91386.0,0.04447]
[1763475730330,0.06304794,91387.0,91386.0,0.04447]
[1763475730547,0.08870117,91391.0,91390.0,0.03235803]
[1763475730757,0.05901162,91403.0,91399.0,0.03016]
[1763475730939,0.05901162,91403.0,91402.0,0.03016]
[1763475730940,0.0228,91403.0,91402.0,0.03016]
[1763475731444,0.0228,91403.0,91402.0,0.39096]
[1763475731646,0.04396,91403.0,91402.0,0.39096]
[1763475731848,0.08181162,91406.0,91405.0,0.03016]
[1763475732035,0.05901162,91407.0,91406.0,0.03016]
[1763475732848,0.40549267,91410.0,91409.0,0.03016]
[1763475735750,0.40549267,91410.0,91394.0,0.3608]
[1763475735751,0.04396,91395.0,91394.0,0.39096]
[1763475737044,0.04396,91395.0,91394.0,0.37588]
[1763475737244,0.04396,91395.0,91394.0,0.01508]
[1763475737743,0.04396,91395.0,91394.0,0.03016]
[1763475737946,0.40476,91399.0,91398.0,0.03016]
[1763475738142,0.04396,91399.0,91398.0,0.03016]
[1763475739341,0.02353267,91400.0,91399.0,0.03016]
[1763475739546,0.03665267,91400.0,91399.0,0.39096]
[1763475739747,0.05781267,91400.0,91399.0,0.39096]
[1763475742146,0.05781267,91400.0,91399.0,0.3608]
[1763475742353,0.04519,91394.0,91391.0,0.3608]
[1763475742548,0.04519,91394.0,91393.0,0.03032413]
[1763475743552,0.04519,91394.0,91393.0,0.03132413]
[1763475744356,0.10420162,91404.0,91403.0,0.03016]
[1763475744654,0.04519,91404.0,91403.0,0.03016]
[1763475745649,0.02281,91404.0,91403.0,0.03016]
[1763475745850,0.05901162,91408.0,91407.0,0.03016]
[1763475746143,0.04519,91401.0,91400.0,0.39096]
[1763475746348,0.04519,91401.0,91400.0,0.39315803]
[1763475747343,0.04519,91401.0,91400.0,0.36299803]
[1763475747545,0.04519,91401.0,91400.0,0.00219803]
[1763475747850,0.04519,91401.0,91400.0,0.01727803]
[1763475748055,0.04519,91401.0,91400.0,0.03235803]
[1763475748450,0.04519,91401.0,91400.0,0.00219803]
[1763475749454,0.04519,91401.0,91400.0,0.01727803]
[1763475749945,0.08089162,91405.0,91404.0,0.03016]
[1763475750146,0.04402,91405.0,91404.0,0.03016]
[1763475753555,0.02188,91405.0,91404.0,0.03016]
[1763475753762,0.05673,91408.0,91407.0,0.03016]
[1763475754661,0.04402,91401.0,91400.0,0.39096]
[1763475754856,0.04402,91401.0,91400.0,0.39315803]
[1763475759767,0.04402,91401.0,91400.0,0.36299803]
[1763475760062,0.04402,91401.0,91400.0,0.62739803]
[1763475761468,0.04402,91401.0,91400.0,0.64247803]
[1763475762675,0.10303162,91401.0,91400.0,0.36299803]
[1763475762962,0.40482,91401.0,91400.0,0.00219803]
[1763475765965,0.04402,91394.0,91393.0,0.00016413]
[1763475766965,0.10314035,91394.0,91393.0,0.00016413]
[1763475767358,0.10314035,91394.0,91393.0,0.01524413]
[1763475768160,0.10314035,91394.0,91393.0,0.03032413]
[1763475768357,0.10314035,91394.0,91393.0,0.03132413]
[1763475768771,0.04402,91394.0,91393.0,0.03132413]
[1763475772287,0.02188,91397.0,91396.0,0.03016]
[1763475772669,0.08173302,91400.0,91399.0,0.03016]
[1763475772974,0.06201788,91400.0,91399.0,0.39096]
[1763475773177,0.02261267,91400.0,91399.0,0.39096]
[1763475773776,0.03940521,91401.0,91400.0,0.03235803]
[1763475774282,0.06128521,91401.0,91400.0,0.03235803]
[1763475774669,0.03940521,91404.0,91403.0,0.03016]
[1763475774873,0.03940521,91409.0,91408.0,0.03016]
[1763475775074,0.03956934,91412.0,91410.0,0.03235803]
[1763475775274,0.04418413,91412.0,91411.0,0.39096]
[1763475776074,0.00016413,91412.0,91411.0,0.39096]
[1763475776279,0.08356277,91412.0,91411.0,0.39096]
[1763475776670,0.08356277,91412.0,91411.0,0.39196]
[1763475777285,0.04418413,91412.0,91411.0,0.39196]
[1763475778673,0.08356277,91412.0,91411.0,0.39196]
[1763475779075,0.04418413,91412.0,91411.0,0.39196]
[1763475779881,0.02204413,91412.0,91411.0,0.39196]
[1763475780082,0.00016413,91412.0,91411.0,0.39196]
[1763475780474,0.03937864,91417.0,91415.0,0.03016]
[1763475780675,0.05912035,91428.0,91427.0,0.03016]
[1763475780875,0.1374108,91441.0,91440.0,0.03016]
[1763475781071,0.05862,91441.0,91440.0,0.03235803]
[1763475781279,0.05862,91441.0,91440.0,0.01727803]
[1763475781476,0.05862,91441.0,91440.0,0.03235803]
[1763475781681,0.0224,91441.0,91440.0,0.03235803]
[1763475781881,0.04598339,91446.0,91445.0,0.03016]
[1763475782079,0.10496755,91446.0,91445.0,0.03016]
[1763475782275,0.04598339,91446.0,91445.0,0.03016]
[1763475783083,0.04571,91441.0,91440.0,0.00219803]
[1763475783381,0.04571,91441.0,91431.0,0.00016413]
[1763475783382,0.05862,91432.0,91431.0,0.00016413]
[1763475783684,0.47833924,91432.0,91431.0,0.00016413]
[1763475783882,0.41942,91432.0,91431.0,0.00016413]
[1763475784082,0.41942,91432.0,91419.0,0.62508]
[1763475784083,0.04571,91420.0,91419.0,0.3608]
[1763475784292,0.04790803,91420.0,91419.0,0.39568]
[1763475784788,0.04790803,91420.0,91419.0,0.37824]
[1763475784973,0.04790803,91420.0,91419.0,0.01744]
[1763475785179,0.04571,91415.0,91414.0,0.2992]
[1763475787789,0.04571,91415.0,91414.0,0.3002]
[1763475788596,0.04571,91415.0,91414.0,0.2992]
[1763475789592,0.04571,91415.0,91414.0,0.26432]
[1763475790192,0.04571,91415.0,91414.0,0.2992]
[1763475791498,0.0224,91415.0,91414.0,0.2992]
[1763475792204,0.05862,91424.0,91423.0,0.03488]
[1763475792503,0.04587404,91429.0,91428.0,0.03488]
[1763475794702,0.00016404,91429.0,91428.0,0.03488]
[1763475794902,0.02256404,91429.0,91428.0,0.03488]
[1763475795404,0.00016404,91429.0,91428.0,0.03488]
[1763475795908,0.05862,91427.0,91426.0,0.37824]
[1763475796404,0.05862,91427.0,91426.0,0.39568]
[1763475797800,0.05862,91427.0,91426.0,0.37824]
[1763475797998,0.05862,91427.0,91426.0,0.3608]
[1763475798504,0.05862,91427.0,91410.0,0.00016404]
[1763475798505,0.04571,91419.0,91418.0,0.39568]
[1763475798706,0.04571,91419.0,91418.0,0.65988]
[1763475799110,0.04571,91419.0,91418.0,0.37824]
[1763475799412,0.04571,91419.0,91418.0,0.3608]
[1763475799610,0.04571,91415.0,91414.0,0.2642]
[1763475799811,0.04571,91415.0,91414.0,0.28164]
[1763475800203,0.04571,91415.0,91414.0,0.29908]
[1763475800505,0.0224,91415.0,91414.0,0.29908]
[1763475800705,0.04456,91415.0,91414.0,0.29908]
[1763475807015,0.0224,91415.0,91414.0,0.29908]
[1763475807818,0.05676,91420.0,91419.0,0.03488]
[1763475810219,0.05895803,91420.0,91419.0,0.03488]
[1763475811520,0.05892456,91423.0,91422.0,0.03488]
[1763475811714,0.0917008,91432.0,91422.0,0.03488]
[1763475811715,0.0814286,91429.0,91428.0,0.03488]
[1763475811922,0.1029386,91429.0,91428.0,0.03488]
[1763475812311,0.04401404,91429.0,91428.0,0.03488]
[1763475814624,0.00016404,91429.0,91428.0,0.03488]
[1763475816412,0.0394009,91433.0,91432.0,0.03488]
[1763475816619,0.0394009,91437.0,91436.0,0.03488]
[1763475816823,0.0394009,91439.0,91438.0,0.03488]
[1763475817318,0.0394009,91442.0,91441.0,0.03488]
[1763475817524,0.0394009,91442.0,91441.0,0.29908]
[1763475817910,0.0832509,91442.0,91441.0,0.29908]
[1763475818119,0.0617409,91442.0,91441.0,0.29908]
[1763475818322,0.02234,91442.0,91441.0,0.29908]
[1763475819221,0.04385,91442.0,91441.0,0.29908]
[1763475819421,0.0832509,91442.0,91441.0,0.28164]
[1763475819719,0.0832509,91442.0,91441.0,0.29908]
[1763475820226,0.04385,91442.0,91441.0,0.29908]
[1763475820821,0.04604803,91440.0,91439.0,0.3608]
[1763475821015,0.0853709,91440.0,91439.0,0.3608]
[1763475821327,0.05722,91434.0,91433.0,0.26416]
[1763475821515,0.05722,91434.0,91433.0,0.2816]
[1763475821925,0.05722,91434.0,91433.0,0.29904]
[1763475826415,0.0393227,91440.0,91433.0,0.29904]
[1763475826725,0.02453803,91440.0,91439.0,0.03488]
[1763475826921,0.04604803,91440.0,91439.0,0.03488]
[1763475828223,0.02234,91440.0,91439.0,0.03488]
[1763475828426,0.0393227,91445.0,91444.0,0.03488]
[1763475828621,0.0393227,91447.0,91445.0,0.03488]
[1763475829130,0.02261339,91446.0,91445.0,0.03488]
[1763475829722,0.00027339,91446.0,91445.0,0.03488]
[1763475831426,0.00016333,91451.0,91450.0,0.03488]
[1763475831630,0.00016333,91451.0,91450.0,0.39568]
[1763475832126,3.33e-06,91451.0,91450.0,0.905]
[1763475832523,0.0393227,91472.0,91470.0,0.03456]
[1763475832723,0.03571,91476.0,91475.0,0.03456]
[1763475833031,0.05722,91476.0,91475.0,0.03456]
[1763475833622,0.0616627,91481.0,91480.0,0.03456]
[1763475833822,0.0831727,91481.0,91480.0,0.03456]
[1763475834324,0.04385,91481.0,91480.0,0.03456]
[1763475835326,0.04385,91481.0,91480.0,0.01728]
[1763475835725,0.04385,91481.0,91480.0,0.03456]
[1763475837131,0.04385,91479.0,91478.0,0.29868]
[1763475839836,0.02234,91479.0,91478.0,0.29868]
[1763475840036,0.03512,91483.0,91482.0,0.03456]
[1763475840329,0.03512,91483.0,91478.0,0.26412]
[1763475840330,0.03921318,91491.0,91490.0,0.03456]
[1763475840527,0.05881977,91496.0,91490.0,0.03456]
[1763475840528,0.05258318,91497.0,91495.0,0.03456]
[1763475840728,0.04311,91496.0,91495.0,0.03456]
[1763475840932,0.03921318,91502.0,91500.0,0.03456]
[1763475841136,0.04311,91516.0,91515.0,0.03456]
[1763475841428,0.04311,91516.0,91500.0,0.3608]
[1763475841429,0.04311,91509.0,91508.0,0.39536]
[1763475841732,0.04311,91509.0,91508.0,0.65944]
[1763475841940,0.0133,91512.0,91509.0,0.03456]
[1763475842232,0.03921318,91523.0,91508.0,0.62488]
[1763475842421,0.0133,91525.0,91524.0,0.03456]
[1763475842624,0.0133,91525.0,91524.0,0.29864]
[1763475842824,0.05641,91525.0,91524.0,0.29864]
[1763475844228,0.0133,91532.0,91525.0,0.03456]
[1763475844432,0.00219803,91530.0,91525.0,0.03456]
[1763475844731,0.0133,91532.0,91525.0,0.03456]
[1763475844931,0.04338315,91526.0,91525.0,0.03456]
[1763475845136,0.04338315,91526.0,91525.0,0.2986]
[1763475845436,0.02202315,91526.0,91525.0,0.2986]
[1763475845826,0.04338315,91526.0,91525.0,0.2986]
[1763475846324,0.02202315,91526.0,91525.0,0.2986]
[1763475846733,0.00027315,91526.0,91525.0,0.2986]
[1763475847536,0.00027315,91526.0,91525.0,0.29856]
[1763475847724,0.04338315,91526.0,91525.0,0.29856]
[1763475847925,0.00027315,91526.0,91525.0,0.29856]
[1763475848223,0.02202315,91526.0,91525.0,0.29856]
[1763475848426,0.00027315,91526.0,91525.0,0.29856]
[1763475848833,0.04338315,91526.0,91525.0,0.29856]
[1763475849128,0.00027315,91526.0,91525.0,0.29856]
[1763475849336,0.04338315,91526.0,91525.0,0.29856]
[1763475849931,0.00027315,91526.0,91525.0,0.29856]
[1763475851732,0.02202315,91526.0,91525.0,0.29856]
[1763475852231,0.02202315,91526.0,91525.0,0.03456]
[1763475852232,0.04338315,91526.0,91525.0,0.03456]
[1763475852433,0.04311,91522.0,91521.0,0.3608]
[1763475852739,0.04311,91522.0,91521.0,0.64204]
[1763475852932,0.04311,91522.0,91521.0,0.37808]
[1763475853141,0.04311,91522.0,91521.0,0.64204]
[1763475853439,0.04311,91522.0,91521.0,0.62476]
[1763475853638,0.04311,91522.0,91521.0,0.3608]
[1763475853835,0.04311,91509.0,91508.0,0.39536]
[1763475854029,0.04311,91509.0,91508.0,0.65928]
[1763475854230,0.05641,91520.0,91519.0,0.03456]
[1763475854439,0.05860803,91520.0,91519.0,0.03456]
[1763475855542,0.04311,91517.0,91516.0,0.3608]
[1763475856832,0.04311,91517.0,91516.0,0.37808]
[1763475857444,0.04311,91517.0,91516.0,0.3608]
[1763475857741,0.04311,91517.0,91516.0,0.39536]
[1763475859843,0.02394803,91520.0,91519.0,0.03456]
[1763475860043,0.05860803,91520.0,91519.0,0.03456]
[1763475862140,0.3741,91528.0,91519.0,0.03456]
[1763475862345,0.0133,91532.0,91525.0,0.03456]
[1763475862546,0.03921318,91536.0,91525.0,0.29848]
[1763475862744,0.04436,91538.0,91537.0,0.03456]
[1763475863044,0.04436,91538.0,91537.0,0.65928]
[1763475863436,0.09687318,91544.0,91543.0,0.03456]
[1763475864041,0.05766,91544.0,91543.0,0.03456]
[1763475864243,0.09687318,91544.0,91543.0,0.03456]
[1763475864445,0.05766,91544.0,91543.0,0.03456]
[1763475865346,0.09687318,91544.0,91543.0,0.03456]
[1763475865738,0.05766,91544.0,91543.0,0.03456]
[1763475867250,0.11647977,91544.0,91543.0,0.03456]
[1763475868342,0.05766,91544.0,91543.0,0.03456]
[1763475868847,0.12354636,91552.0,91551.0,0.03456]
[1763475869337,0.04512,91547.0,91546.0,0.29844]
[1763475870955,0.07857396,91549.0,91548.0,0.03456]
[1763475871154,0.12369396,91549.0,91548.0,0.03456]
[1763475871359,0.04512,91547.0,91546.0,0.26388]
[1763475871560,0.04512,91547.0,91546.0,0.28116]
[1763475871763,0.04512,91547.0,91546.0,0.29844]
[1763475872357,0.04512,91547.0,91546.0,0.03456]
[1763475872558,0.04512,91547.0,91546.0,0.29844]
[1763475875861,0.07857396,91554.0,91553.0,0.03456]
[1763475876067,0.04539303,91566.0,91565.0,0.03456]
[1763475876469,0.10426309,91566.0,91565.0,0.03456]
[1763475876661,0.04539303,91566.0,91565.0,0.03456]
[1763475876860,0.00027303,91566.0,91565.0,0.03456]
[1763475877163,0.03924279,91572.0,91571.0,0.03456]
[1763475877359,0.03924279,91575.0,91574.0,0.03456]
[1763475877557,0.03924279,91577.0,91576.0,0.03456]
[1763475877756,0.03924279,91578.0,91576.0,0.03456]
[1763475877957,0.03924279,91578.0,91577.0,0.03456]
[1763475878169,0.04512,91578.0,91577.0,0.03456]
[1763475879471,0.04512,91575.0,91574.0,0.37808]
[1763475879659,0.04512,91575.0,91574.0,0.64188]
[1763475880270,0.04512,91575.0,91574.0,0.37808]
[1763475880466,0.04512,91575.0,91574.0,0.3608]
[1763475881168,0.04512,91575.0,91565.0,0.3608]
[1763475881169,0.04512,91566.0,91565.0,0.3608]
[1763475881668,0.04512,91566.0,91565.0,0.37808]
[1763475881875,0.44516279,91575.0,91574.0,0.03456]
[1763475882081,0.04512,91575.0,91574.0,0.03456]
[1763475882677,0.0589,91566.0,91565.0,0.37808]
[1763475882865,0.0589,91566.0,91565.0,0.64188]
[1763475883065,0.0589,91566.0,91565.0,0.3608]
[1763475883571,0.0589,91566.0,91562.0,0.00016386]
[1763475883572,0.04512,91563.0,91562.0,0.00016386]
[1763475885069,0.04512,91563.0,91562.0,0.01744386]
[1763475885268,0.04512,91563.0,91562.0,0.03472386]
[1763475886676,0.036,91566.0,91565.0,0.03456]
[1763475887069,0.0589,91576.0,91575.0,0.03456]
[1763475890167,0.0589,91576.0,91575.0,0.01728]
[1763475890374,0.04512,91573.0,91572.0,0.37808]
[1763475890574,0.04512,91573.0,91572.0,0.65912]
[1763475891769,0.03924279,91578.0,91577.0,0.03456]
[1763475891966,0.02222,91579.0,91578.0,0.03456]
[1763475892171,0.00219803,91580.0,91579.0,0.03456]
[1763475892571,0.036,91581.0,91580.0,0.03675803]
[1763475892879,0.036,91581.0,91580.0,0.39755803]
[1763475893279,0.0589,91581.0,91580.0,0.39755803]
[1763475893680,0.03924279,91583.0,91582.0,0.03456]
[1763475893879,0.03924279,91585.0,91584.0,0.03456]
[1763475894072,0.08436279,91585.0,91584.0,0.03456]
[1763475894279,0.04512,91585.0,91584.0,0.03456]
[1763475896686,0.01378,91588.0,91585.0,0.03456]
[1763475896687,0.03924279,91587.0,91585.0,0.03456]
[1763475896881,0.02222,91586.0,91585.0,0.03456]
[1763475897083,0.04512,91586.0,91585.0,0.03456]
[1763475897579,0.03924279,91588.0,91587.0,0.03456]
[1763475897779,0.0836433,91590.0,91589.0,0.03456]
[1763475897981,0.04440051,91590.0,91589.0,0.39536]
[1763475898180,0.04367,91581.0,91580.0,0.36096386]
[1763475898385,0.04367,91581.0,91580.0,0.66144189]
[1763475898575,0.04367,91581.0,91580.0,0.39772189]
[1763475898887,0.04367,91581.0,91580.0,0.66144189]
[1763475899388,0.01742035,91581.0,91580.0,0.66144189]
[1763475899579,0.03999035,91581.0,91580.0,0.66144189]
[1763475900179,0.40079035,91581.0,91580.0,0.00236189]
[1763475900393,0.04367,91554.0,91553.0,0.3608]
[1763475900684,0.0128,91560.0,91520.0,0.01368]
[1763475900685,0.00073051,91550.0,91520.0,0.01368]
[1763475900878,0.05883389,91532.0,91531.0,0.04502]
[1763475901078,0.03922228,91540.0,91535.0,0.04502]
[1763475901278,0.03995116,91540.0,91539.0,0.04502]
[1763475901580,0.00073051,91540.0,91539.0,0.04502]
[1763475901776,0.03993817,91540.0,91539.0,0.04502]
[1763475901981,0.00073051,91540.0,91539.0,0.04502]
[1763475902690,0.3608,91541.0,91540.0,0.04721803]
[1763475902891,0.00016326,91547.0,91540.0,0.04721803]
[1763475902892,0.00016326,91547.0,91546.0,0.04502]
[1763475903075,0.05883389,91557.0,91556.0,0.04502]
[1763475903076,0.03919836,91557.0,91556.0,0.04502]
[1763475903279,0.03919836,91561.0,91560.0,0.04721803]
[1763475903486,0.3608,91562.0,91561.0,0.04502]
[1763475903888,0.39999438,91562.0,91561.0,0.04502]
[1763475904079,0.03919438,91562.0,91561.0,0.04502]
[1763475904284,0.03919438,91564.0,91563.0,0.04502]
[1763475904484,0.00073051,91570.0,91569.0,0.04502]
[1763475905286,0.04440051,91570.0,91569.0,0.04502]
[1763475906387,0.04367,91565.0,91564.0,0.04502]
[1763475906591,0.04367,91561.0,91560.0,0.00219803]
[1763475906790,0.04367,91553.0,91552.0,0.04518386]
[1763475909097,0.04367,91553.0,91552.0,0.00016386]
[1763475909302,0.04367,91553.0,91552.0,0.04518386]
[1763475910193,0.04367,91553.0,91552.0,0.02232386]
[1763475910495,0.0392163,91555.0,91554.0,0.04502]
[1763475910802,0.0617863,91559.0,91558.0,0.04502]
[1763475911202,0.0392163,91565.0,91564.0,0.0587]
[1763475911396,0.3608,91570.0,91569.0,0.04502]
[1763475911397,0.4000163,91570.0,91569.0,0.04502]
[1763475911600,0.40520051,91570.0,91569.0,0.04502]
[1763475911797,0.38410051,91570.0,91569.0,0.04502]
[1763475912097,0.00073051,91570.0,91569.0,0.04502]
[1763475913801,0.04440051,91570.0,91569.0,0.04502]
[1763475914795,0.00073051,91570.0,91569.0,0.04502]
[1763475916790,0.04367,91565.0,91564.0,0.02216]
[1763475916991,0.04367,91561.0,91560.0,0.02435803]
[1763475917191,0.04367,91561.0,91560.0,0.00219803]
[1763475917495,0.10247273,91561.0,91560.0,0.02435803]
[1763475917896,0.10247273,91561.0,91560.0,0.00219803]
[1763475918093,0.04367,91561.0,91560.0,0.00219803]
[1763475918498,0.3608,91562.0,91561.0,0.04502]
[1763475919198,0.10101518,91569.0,91568.0,0.02216]
[1763475919396,0.62488,91572.0,91569.0,0.04502]
[1763475919397,0.00073051,91570.0,91569.0,0.04502]
[1763475919998,0.03919548,91572.0,91570.0,0.01587803]
[1763475920192,0.00419548,91584.0,91583.0,0.04355]
[1763475920499,0.3608,91596.0,91580.0,0.01277]